fUSD/lending_fUSD_20250826
["ID","MTS","AMOUNT","RATE_DAILY","PERIOD"]
[381524338,1756249831739,-160.0,0.00024108,2]
[381524339,1756249831749,-1000.0,0.00024109,2]
[381524340,1756249831758,-4155.0,0.00024601,2]
[381524341,1756249831768,-21104.0,0.00024601,2]
[381524342,1756249831777,-426.825,0.00024657,2]
[381524343,1756249831787,-257.91778498,0.00024885,2]
[381524344,1756249831797,-10763.35304951,0.000249,2]
[381524345,1756249831807,-1000.0,0.00025068,2]
[381524346,1756249831817,-1200.0,0.00025284,2]
[381524347,1756249831827,-2962.23,0.00025285,2]
[381524348,1756249831837,-211.2,0.00025288,2]
[381524349,1756249831847,-4966.25,0.00025304,2]
[381524350,1756249831857,-169.11,0.00025359,2]
[381524351,1756249831867,-152.51,0.0002538,2]
[381524352,1756249831876,-2751.0,0.0002538,2]
[381524353,1756249831886,-250.0,0.00025462,2]
[381524354,1756249831895,-23.85025882,0.00025562,2]
[381524355,1756249831922,-145.25974118,0.00025562,2]
[381524356,1756249831932,-160.0,0.00025569,7]
[381524357,1756249831941,-160.0,0.00025597,3]
[381524359,1756249831951,-17.79665882,0.00025597,3]
[381524367,1756249837433,-301.51651019,0.00024601,2]
[381524368,1756249837601,-353.47052981,0.00024601,2]
[381524374,1756249840151,-63.01296,0.00024601,2]
[381524375,1756249840163,-283.238,0.00025051,2]
[381524376,1756249840172,-449.91652609,0.00025597,3]
[381524377,1756249840183,-3502.39183922,0.00025597,3]
[381524378,1756249840230,-6793.24802531,0.00025597,3]
[381524379,1756249840240,-5000.0,0.00025659,2]
[381524380,1756249840250,-1000.0,0.00025667,2]
[381524381,1756249840259,-510.0,0.00025767,2]
[381524382,1756249840268,-151.0,0.00025824,2]
[381524383,1756249840277,-200.0,0.00025824,2]
[381524384,1756249840287,-695.39793186,0.00025824,2]
[381524385,1756249840296,-160.0,0.00025824,2]
[381524386,1756249840305,-1000.0,0.00025824,2]
[381524387,1756249840315,-1000.0,0.00025824,2]
[381524388,1756249840324,-1000.0,0.00025824,2]
[381524389,1756249840334,-1000.0,0.00025824,2]
[381524390,1756249840344,-756.685958,0.00025824,2]
[381524391,1756249840353,-151.0,0.00025824,2]
[381524392,1756249840363,-151.0,0.00025824,2]
[381524393,1756249840372,-151.0,0.00025824,2]
[381524394,1756249840382,-151.0,0.00025824,2]
[381524395,1756249840391,-151.0,0.00025824,2]
[381524396,1756249840401,-151.0,0.00025824,2]
[381524397,1756249840410,-151.0,0.00025824,2]
[381524398,1756249840419,-151.0,0.00025824,2]
[381524399,1756249840429,-151.0,0.00025824,2]
[381524400,1756249840439,-151.0,0.00025824,2]
[381524401,1756249840448,-151.0,0.00025824,2]
[381524402,1756249840457,-106.38050619,0.00025824,2]
[381524403,1756249840470,-393.61949381,0.00025824,2]
[381524404,1756249840480,-137.14952813,0.00025824,2]
[381524405,1756249840491,-15.8360694,0.00025824,2]
[381524406,1756249840500,-151.0,0.00025824,2]
[381524407,1756249840509,-151.0,0.00025824,2]
[381524408,1756249840519,-151.0,0.00025824,2]
[381524409,1756249840528,-219.40690608,0.00025824,2]
[381524410,1756249840537,-1000.0,0.00025824,2]
[381524411,1756249840545,-555.73948652,0.00025824,2]
[381524412,1756249840581,-444.26051348,0.00025824,2]
[381524413,1756249840591,-160.91764174,0.00025824,2]
[381524414,1756249840600,-600.0,0.00025824,2]
[381524415,1756249840610,-600.0,0.00025824,2]
[381524416,1756249840619,-530.55804478,0.00025824,2]
[381524417,1756249840630,-69.44195522,0.00025824,2]
[381524419,1756249840639,-376.64452149,0.00025824,2]
[381524420,1756249840650,-223.35547851,0.00025824,2]
[381524421,1756249840659,-238.98762149,0.00025824,2]
[381524422,1756249840671,-361.01237851,0.00025824,2]
[381524423,1756249840680,-600.0,0.00025824,2]
[381524424,1756249840689,-322.6107,0.00025824,2]
[381524425,1756249840698,-600.0,0.00025824,2]
[381524426,1756249840707,-600.0,0.00025824,2]
[381524427,1756249840716,-600.0,0.00025824,2]
[381524428,1756249840726,-600.0,0.00025824,2]
[381524429,1756249840735,-2212.466,0.0002584,2]
[381524431,1756249840744,-1256.0,0.0002584,2]
[381524432,1756249840754,-926.0,0.0002584,2]
[381524433,1756249840763,-2031.0,0.0002584,2]
[381524434,1756249840773,-1298.0,0.0002584,2]
[381524435,1756249840783,-566.0,0.0002584,2]
[381524436,1756249840793,-1658.0,0.0002584,2]
[381524437,1756249840803,-599.0,0.0002584,2]
[381524438,1756249840812,-500.0,0.00025879,2]
[381524439,1756249840821,-768.37,0.00025886,2]
[381524440,1756249840832,-150.0,0.0002589,4]
[381524441,1756249840842,-150.0,0.0002589,4]
[381524442,1756249840853,-150.0,0.0002589,4]
[381524443,1756249840863,-150.0,0.0002589,4]
[381524444,1756249840872,-150.0,0.0002589,4]
[381524445,1756249840882,-150.0,0.0002589,4]
[381524446,1756249840891,-1000.0,0.00026027,2]
[381524447,1756249840900,-267.46074303,0.00026254,2]
[381524448,1756249840909,-150.0,0.0002629,2]
[381524449,1756249840919,-10763.35304944,0.00026293,5]
[381524450,1756249840928,-697.18,0.000263,2]
[381524451,1756249840937,-416.0,0.000265,2]
[381524452,1756249840946,-166.66,0.00026512,2]
[381524453,1756249840956,-1849.814,0.00026533,13]
[381524454,1756249840965,-176.194,0.00026533,13]
[381524455,1756249840974,-1079.54,0.00026622,2]
[381524456,1756249840983,-170.95,0.00026622,2]
[381524457,1756249840993,-347.58,0.00026622,2]
[381524458,1756249841002,-214.15,0.00026676,2]
[381524459,1756249841012,-1000.0,0.000267,2]
[381524460,1756249841022,-160.0,0.00026814,2]
[381524461,1756249841031,-853.65,0.00026849,6]
[381524462,1756249841040,-871.51248216,0.00026876,2]
[381524463,1756249841051,-1000.0,0.00026986,2]
[381524464,1756249841060,-10763.35304944,0.0002699,6]
[381524465,1756249841069,-158.0,0.00027,7]
[381524466,1756249841079,-154.0,0.00027,7]
[381524467,1756249841095,-152.51,0.00027072,2]
[381524468,1756249841104,-766.82319201,0.000271,2]
[381524469,1756249841113,-1000.0,0.000271,2]
[381524470,1756249841123,-1135.17024312,0.00027106,2]
[381524471,1756249841133,-54126.1564843,0.000272,2]
[381524472,1756249841143,-342.9867487,0.000272,2]
[381524473,1756249841152,-200.0,0.00027243,2]
[381524474,1756249841163,-766.823192,0.00027244,2]
[381524475,1756249841172,-5000.0,0.00027287,2]
[381524476,1756249841181,-165.46922328,0.00027287,2]
[381524477,1756249841190,-2395.45,0.00027367,2]
[381524478,1756249841199,-500.0,0.00027373,2]
[381524479,1756249841208,-500.0,0.00027373,2]
[381524480,1756249841217,-390.56671548,0.00027376,2]
[381524481,1756249841226,-116921.366792,0.00027377,2]
[381524482,1756249841235,-2395.45,0.00027377,2]
[381524483,1756249841244,-500.0,0.00027386,2]
[381524484,1756249841254,-180.68144747,0.00027386,2]
[381524485,1756249841263,-195.45616292,0.00027386,2]
[381524486,1756249841273,-27008.70874211,0.00027387,2]
[381524487,1756249841282,-357538.27846057,0.00027387,2]
[381524488,1756249841294,-527.55520127,0.00027387,2]
[381524489,1756249841325,-3481.769999,0.00027387,2]
[381524490,1756249841352,-1088.11676884,0.00027387,2]
[381524494,1756249842685,-1408.80322685,0.00027387,2]
[381524498,1756249845499,-1466.33591318,0.00027387,2]
[381524499,1756249845594,-1132.84286779,0.00027387,2]
[381524500,1756249845813,-949.65,0.00027387,2]
[381524501,1756249845825,-727.42898272,0.00027387,2]
[381524502,1756249845836,-302.0,0.00027387,2]
[381524503,1756249845848,-431.885,0.00027387,2]
[381524504,1756249845896,-13948.77910915,0.00027387,2]
[381524543,1756250426224,184.25,0.00025889,120]
[381524579,1756250872547,4345.32451578,0.00013,2]
[381524619,1756250948557,15000.0,7.945e-05,2]
[381524620,1756250948578,13491.753309,7.945e-05,2]
[381524621,1756250979588,-191.94623372,0.00017456,2]
[381524622,1756250979610,-4834.475312,0.00017468,2]
[381524623,1756250979632,-250.0,0.00017556,2]
[381524624,1756250979653,-204.0,0.00017556,2]
[381524625,1756250979675,-150.0,0.00017556,2]
[381524626,1756250979696,-300.0,0.000176,6]
[381524627,1756250979718,-600.0,0.000177,6]
[381524628,1756250979740,-150.0,0.00017702,2]
[381524629,1756250979764,-1000.0,0.000178,6]
[381524630,1756250979789,-1300.0,0.000179,6]
[381524631,1756250979811,-746.2688423,0.000179,2]
[381524632,1756250979834,-167.48234821,0.000179,2]
[381524633,1756250979857,-155.3768949,0.000179,3]
[381524634,1756250979880,-500.0,0.00017973,2]
[381524635,1756250979902,-500.0,0.00017973,2]
[381524636,1756250979924,-507.09617407,0.00017973,2]
[381524637,1756250979946,-258.11635352,0.00017999,2]
[381524638,1756250979968,-500.0,0.00017999,2]
[381524639,1756250979990,-493.50880417,0.00017999,2]
[381524640,1756250980014,-181.20743732,0.00017999,2]
[381524641,1756250980040,-500.0,0.00017999,2]
[381524642,1756250980061,-238.23152491,0.00017999,2]
[381524643,1756250980084,-500.0,0.00017999,2]
[381524644,1756250980105,-530.20628755,0.00017999,2]
[381524645,1756250980128,-242.08378733,0.00017999,2]
[381524646,1756250981568,-150.0,0.00017956,3]
[381524647,1756250981591,-257.91621267,0.00017999,2]
[381524648,1756250981613,-539.14264323,0.00017999,2]
[381524649,1756250981640,-14052.9411441,0.00018,2]
[381524650,1756250982335,-15000.0,0.00018,2]
[381524651,1756250983608,-15000.0,0.00018,2]
[381524652,1756250985065,-722.98130898,0.000177,2]
[381524653,1756250985089,-6475.97121629,0.00018,2]
[381524654,1756250985112,-7801.04747473,0.00018,2]
[381524655,1756250986039,-15000.0,0.00018,2]
[381524656,1756250987258,-163.53359156,0.000179,2]
[381524657,1756250987283,-14836.46640844,0.00018,2]
[381524658,1756250990027,-15000.0,0.00018,2]
[381524664,1756251008535,-500.0,0.00017973,2]
[381524665,1756251008558,-1200.0,0.00017999,2]
[381524666,1756251008581,-219.0,0.00017999,2]
[381524667,1756251008605,-150.0,0.00018,2]
[381524668,1756251008632,-7912.0,0.00018,2]
[381524669,1756251010057,211.87,0.00013699,2]
[381524672,1756251031701,-167.38057004,0.000179,2]
[381524673,1756251031711,-325.86990727,0.0001799,2]
[381524674,1756251031720,-325.86990727,0.0001799,2]
[381524675,1756251031730,-325.86990727,0.0001799,2]
[381524676,1756251031739,-54970.22041098,0.00018,2]
[381524677,1756251031750,-393.2474532,0.00018,2]
[381524678,1756251031763,-323.3292545,0.00018,2]
[381524679,1756251031836,-3243.46525856,0.00018,2]
[381524680,1756251031940,-424.0,0.00018,2]
[381524681,1756251031951,-1374.05177347,0.00018,2]
[381524689,1756251032185,-594.37672668,0.00018,2]
[381524692,1756251032199,-16248.1474629,0.00018,2]
[381524698,1756251032264,-606.97,0.00018,2]
[381524699,1756251032275,-2174.65779542,0.00018,2]
[381524700,1756251032340,-927.61514,0.00018,2]
[381524701,1756251037808,-797.37,0.00018,2]
[381524702,1756251037821,-383.376,0.00018,2]
[381524707,1756251039825,-259.13053245,0.00018,2]
[381524708,1756251039965,-301.75061813,0.00018,2]
[381524709,1756251040000,-12984.06153719,0.00018,2]
[381524735,1756251040620,-10538.76749242,0.00018,2]
[381524736,1756251040630,-2502178.43833374,0.00018,2]
[381524737,1756251040639,-120511.15280548,0.00018,2]
[381524738,1756251040649,-109316.6291554,0.00018,2]
[381524739,1756251040658,-4017715.10941272,0.00018,2]
[381524740,1756251040699,-9457.26284103,0.00018,2]
[381524746,1756251043013,-645.42190025,0.00018,2]
[381524747,1756251043025,-195186.44318738,0.00018,2]
[381524748,1756251043034,-151.0,0.00018,2]
[381524749,1756251043044,-48391.81221971,0.00018,2]
[381524750,1756251043053,-1000.0,0.00018521,2]
[381524751,1756251043063,-152.9,0.000188,2]
[381524752,1756251043073,-152.9,0.000188,2]
[381524753,1756251043082,-152.9,0.000188,2]
[381524754,1756251043092,-152.9,0.000188,2]
[381524755,1756251043102,-152.9,0.000188,2]
[381524756,1756251043114,-152.9,0.000188,2]
[381524757,1756251043124,-152.9,0.000188,2]
[381524758,1756251043133,-152.9,0.000188,2]
[381524759,1756251043143,-152.9,0.000188,2]
[381524760,1756251043152,-152.9,0.000188,2]
[381524761,1756251043162,-152.9,0.000188,2]
[381524762,1756251043172,-152.9,0.000188,2]
[381524763,1756251043182,-152.9,0.000188,2]
[381524764,1756251043191,-152.9,0.000188,2]
[381524765,1756251043200,-152.9,0.000188,2]
[381524766,1756251043210,-152.9,0.000188,2]
[381524767,1756251043220,-152.9,0.000188,2]
[381524768,1756251043229,-152.9,0.000188,2]
[381524769,1756251043238,-152.9,0.000188,2]
[381524770,1756251043248,-152.9,0.000188,2]
[381524772,1756251043257,-152.9,0.000188,2]
[381524773,1756251043266,-152.9,0.000188,2]
[381524774,1756251043275,-152.9,0.000188,2]
[381524775,1756251043285,-150.0,0.00018902,2]
[381524776,1756251043294,-443.27931932,0.00019068,2]
[381524777,1756251043304,-2500.0,0.00019263,2]
[381524778,1756251043314,-250.0,0.00019263,2]
[381524779,1756251043324,-204.0,0.00019263,2]
[381524780,1756251043332,-150.0,0.00019263,2]
[381524781,1756251043341,-150.0,0.00019263,2]
[381524782,1756251043350,-167.48234819,0.00019512,2]
[381524783,1756251043360,-480.0,0.00019735,2]
[381524784,1756251043372,-150.0,0.00019799,2]
[381524785,1756251043381,-4000.0,0.0002,4]
[381524786,1756251043390,-211.87,0.00020187,2]
[381524787,1756251043399,-746.26884227,0.00020382,2]
[381524789,1756251043409,-167.48234819,0.00021124,2]
[381524790,1756251043424,-4000.0,0.00022,4]
[381524791,1756251043434,-161.13,0.00022079,2]
[381524792,1756251043444,-156.4965233,0.00022451,4]
[381524793,1756251043454,-557.36,0.000225,7]
[381524794,1756251043464,-16006.04,0.000225,2]
[381524795,1756251043474,-167.48234819,0.00022736,2]
[381524796,1756251043483,-156.4965233,0.00022845,4]
[381524797,1756251043496,-746.26884227,0.00022864,2]
[381524798,1756251043506,-156.4965233,0.00023238,4]
[381524799,1756251043515,-613.4585536,0.00023327,2]
[381524800,1756251043528,-4154.53,0.000234,7]
[381524801,1756251043538,-30980.94,0.000234,7]
[381524802,1756251043547,-165.387328,0.00023427,2]
[381524803,1756251043556,-844.63891918,0.00023527,2]
[381524804,1756251043565,-212.18043798,0.00023527,2]
[381524805,1756251043574,-409.68272476,0.00023527,2]
[381524806,1756251043584,-160.0,0.00023527,2]
[381524807,1756251043593,-156.4965233,0.00023632,4]
[381524808,1756251043604,-613.4585536,0.00023799,2]
[381524809,1756251043614,-4000.0,0.00024,4]
[381524810,1756251043623,-156.4965233,0.00024026,4]
[381524811,1756251043633,-613.4585536,0.0002427,2]
[381524812,1756251043643,-557.36,0.000243,7]
[381524813,1756251043652,-13523.66085416,0.000243,2]
[381524815,1756251046159,-2482.37914584,0.000243,2]
[381524816,1756251046168,-167.48234819,0.00024347,2]
[381524817,1756251046178,-156.4965233,0.0002442,4]
[381524818,1756251046188,-613.4585536,0.00024742,2]
[381524819,1756251046198,-10065.78342907,0.000248,2]
[381524820,1756251046266,-4664.887554,0.000248,2]
[381524821,1756251046279,-2311.70000002,0.000248,2]
[381525450,1756251895523,217.46,0.00013699,2]
[381525511,1756252232980,-173.03,0.00018704,2]
[381525512,1756252232990,-150.0,0.00018776,2]
[381525513,1756252232999,-300.0,0.00018849,2]
[381525515,1756252233008,-1200.0,0.00018849,2]
[381525517,1756252233018,-1201.77,0.0001885,2]
[381525521,1756252233054,-10119.86244266,0.0001885,2]
[381525522,1756252233064,-217.46,0.00020187,2]
[381525523,1756252233074,-150.0,0.00020574,2]
[381525524,1756252233084,-250.0,0.00020574,2]
[381525525,1756252233094,-204.0,0.00020574,2]
[381525526,1756252233104,-1232.5591821,0.00020836,2]
[381525527,1756252233115,-150.0,0.00021737,2]
[381525528,1756252233125,-150.0,0.00021774,2]
[381525529,1756252233135,-383.07,0.00021797,2]
[381525530,1756252233145,-199.09381828,0.00021984,2]
[381525531,1756252233155,-500.0,0.00022137,2]
[381525532,1756252233165,-380.19025013,0.0002226,2]
[381525533,1756252233175,-391.0,0.0002226,2]
[381525534,1756252233184,-3897.77,0.00022651,2]
[381525535,1756252233194,-164.8,0.00022651,2]
[381525536,1756252233204,-164.8,0.0002266,2]
[381525537,1756252233214,-164.8,0.0002267,2]
[381525538,1756252233223,-164.8,0.00022679,2]
[381525539,1756252233233,-164.8,0.00022689,2]
[381525540,1756252233242,-164.8,0.00022698,2]
[381525541,1756252233252,-164.8,0.00022708,2]
[381525542,1756252233261,-163.72,0.0002271,2]
[381525543,1756252233271,-164.8,0.00022717,2]
[381525544,1756252233281,-164.8,0.00022727,2]
[381525545,1756252233291,-164.8,0.00022737,2]
[381525546,1756252233300,-164.8,0.00022746,2]
[381525547,1756252233309,-164.8,0.00022756,2]
[381525548,1756252233319,-164.8,0.00022765,2]
[381525549,1756252233329,-164.8,0.00022775,2]
[381525550,1756252233338,-164.8,0.00022784,2]
[381525551,1756252233348,-816.57426024,0.00022787,2]
[381525552,1756252233357,-5646.8157223,0.00022787,2]
[381525553,1756252233367,-163.53359154,0.00022787,2]
[381525554,1756252233377,-164.8,0.00022794,2]
[381525555,1756252233386,-164.8,0.00022803,2]
[381525556,1756252233396,-164.8,0.00022813,2]
[381525557,1756252233405,-164.8,0.00022822,2]
[381525558,1756252233414,-164.8,0.00022832,2]
[381525559,1756252233424,-2434.74389024,0.0002285,2]
[381525560,1756252233434,-257.91778498,0.0002285,2]
[381525561,1756252233443,-178.03,0.00022854,2]
[381525562,1756252233453,-500.0,0.00022863,2]
[381525563,1756252233464,-460.76973172,0.00022863,2]
[381525564,1756252233474,-500.0,0.00022863,2]
[381525565,1756252233483,-500.0,0.00022863,2]
[381525566,1756252233492,-500.0,0.00022863,2]
[381525567,1756252233502,-384.97391899,0.00022863,2]
[381525568,1756252233512,-499.99999999,0.00022863,2]
[381525569,1756252233521,-202542.4,0.00022864,2]
[381525570,1756252233531,-383.07,0.00022887,2]
[381525571,1756252233540,-500.25359507,0.000229,2]
[381525572,1756252233549,-2524.82941417,0.00022905,2]
[381525573,1756252233559,-160.0,0.0002296,7]
[381525574,1756252233569,-2618.2481025,0.0002296,2]
[381525575,1756252233578,-2715.12328229,0.00023015,2]
[381525576,1756252233588,-3141.79,0.0002306,2]
[381525577,1756252233598,-2815.58284374,0.0002307,2]
[381525578,1756252233608,-4023.81,0.00023113,2]
[381525579,1756252233617,-2919.75940895,0.00023125,2]
[381525580,1756252233627,-3027.79050709,0.0002318,2]
[381525581,1756252233636,-3139.81875585,0.00023235,2]
[381525582,1756252233646,-3139.396009,0.00023241,2]
[381525583,1756252233655,-11604.8084563,0.00023241,2]
[381525584,1756252233665,-269.17016643,0.00023252,2]
[381525585,1756252233675,-3255.99204981,0.0002329,2]
[381525586,1756252233684,-3376.46375566,0.00023345,2]
[381525587,1756252233694,-173.03,0.00023379,2]
[381525588,1756252233703,-5646.81572227,0.00023379,2]
[381525589,1756252233713,-489.0,0.000234,2]
[381525590,1756252233722,-3501.39291462,0.000234,2]
[381525591,1756252233731,-796.48561175,0.00023455,2]
[381525592,1756252233741,-7079.1,0.00023484,2]
[381525593,1756252233751,-5000.0,0.00023544,2]
[381525594,1756252233760,-2751.0,0.00023801,2]
[381525595,1756252233770,-178.1,0.00023835,2]
[381525596,1756252233783,-500.0,0.00023857,2]
[381525597,1756252233792,-274.2197592,0.00023898,2]
[381525598,1756252233802,-12286.55922601,0.000239,2]
[381525599,1756252233812,-187.54583301,0.000239,2]
[381525600,1756252233823,-250.0,0.00023924,2]
[381525601,1756252233832,-152.30241956,0.00023938,2]
[381525602,1756252233842,-200.0,0.00023938,2]
[381525603,1756252233851,-160.0,0.00023938,2]
[381525604,1756252233862,-500.0,0.00023938,2]
[381525605,1756252233871,-318.93584135,0.00023938,2]
[381525606,1756252233882,-1000.0,0.00023938,2]
[381525607,1756252233892,-151.0,0.00023938,2]
[381525608,1756252233901,-555.73948652,0.00023938,2]
[381525609,1756252233911,-151.0,0.00023938,2]
[381525610,1756252233920,-322.6107,0.00023938,2]
[381525611,1756252233930,-151.0,0.00023938,2]
[381525612,1756252233940,-151.0,0.00023938,2]
[381525613,1756252233949,-151.0,0.00023938,2]
[381525614,1756252233959,-600.0,0.00023938,2]
[381525615,1756252233969,-600.0,0.00023938,2]
[381525616,1756252233979,-600.0,0.00023938,2]
[381525617,1756252233988,-600.0,0.00023938,2]
[381525618,1756252233998,-600.0,0.00023938,2]
[381525619,1756252234007,-361.01237851,0.00023938,2]
[381525620,1756252234017,-25565.49,0.00023953,2]
[381525621,1756252234026,-12210.93487148,0.00023959,2]
[381525622,1756252234036,-5646.81572227,0.00023972,2]
[381525623,1756252234046,-383.07,0.00023977,2]
[381525624,1756252234056,-500.0,0.00023993,2]
[381525625,1756252234066,-110190.08941864,0.00024,3]
[381525626,1756252234076,-844.63891918,0.00024,3]
[381525627,1756252234085,-151.0,0.00024,7]
[381525628,1756252234095,-212.18043798,0.00024,3]
[381525629,1756252234105,-409.68272476,0.00024,3]
[381525630,1756252234115,-160.0,0.00024,3]
[381525631,1756252234125,-2470.84,0.00024012,2]
[381525632,1756252234135,-500.0,0.00024048,2]
[381525633,1756252234146,-200.0,0.000241,2]
[381525634,1756252234155,-500.0,0.00024103,2]
[381525635,1756252234164,-500.0,0.00024158,2]
[381525636,1756252234174,-1000.0,0.000242,2]
[381525637,1756252234183,-267.46074303,0.00024219,2]
[381525638,1756252234193,-1000.0,0.00024354,2]
[381525639,1756252234202,-3141.79,0.00024359,2]
[381525640,1756252234212,-12286.55922599,0.00024369,2]
[381525641,1756252234222,-479.68415577,0.0002441,2]
[381525642,1756252234232,-250.0,0.00024429,2]
[381525643,1756252234241,-150.0,0.00024438,2]
[381525644,1756252234251,-150.0,0.00024438,2]
[381525645,1756252234260,-150.0,0.00024438,2]
[381525646,1756252234269,-150.0,0.00024438,2]
[381525647,1756252234279,-219.40690608,0.00024486,2]
[381525648,1756252234288,-5646.81572227,0.00024564,2]
[381525649,1756252234298,-479.0,0.0002458,2]
[381525650,1756252234308,-871.51248216,0.00024634,2]
[381525651,1756252234318,-166.57,0.00024641,2]
[381525652,1756252234329,-377.78,0.00024658,2]
[381525653,1756252234339,-274.21975915,0.00024697,2]
[381525654,1756252234349,-150.0,0.00024712,2]
[381525655,1756252234360,-150.0,0.00024712,2]
[381525656,1756252234370,-150.0,0.00024712,2]
[381525657,1756252234380,-500.0,0.00024775,2]
[381525658,1756252234390,-844.63891918,0.0002478,2]
[381525659,1756252234400,-409.68272476,0.00024792,2]
[381525660,1756252234410,-212.18043798,0.00024792,2]
[381525661,1756252234419,-150.0,0.000248,7]
[381525662,1756252234429,-150.0,0.000248,7]
[381525663,1756252234438,-150.0,0.000248,7]
[381525664,1756252234448,-150.0,0.000248,7]
[381525665,1756252234458,-200.0,0.000248,2]
[381525666,1756252234467,-171.14727462,0.000248,2]
[381525667,1756252234477,-151.0,0.000248,2]
[381525668,1756252234487,-292.0,0.000248,7]
[381525669,1756252234496,-200.0,0.000248,7]
[381525670,1756252234505,-500.0,0.000248,7]
[381525671,1756252234515,-150.0,0.000248,7]
[381525672,1756252234524,-150.0,0.000248,7]
[381525673,1756252234534,-150.0,0.000248,7]
[381525674,1756252234544,-500.0,0.000248,7]
[381525675,1756252234553,-150.0,0.000248,7]
[381525676,1756252234563,-150.0,0.000248,7]
[381525677,1756252234572,-500.0,0.000248,7]
[381525678,1756252234581,-150.0,0.000248,7]
[381525679,1756252234590,-150.0,0.000248,7]
[381525680,1756252234599,-150.0,0.000248,7]
[381525681,1756252234608,-95246.5404438,0.000248,2]
[381525682,1756252234618,-200.0,0.000248,2]
[381525683,1756252234627,-2918.29079,0.000248,2]
[381525684,1756252234638,-12286.55922599,0.00024838,2]
[381525685,1756252234648,-161.13,0.00024839,2]
[381525686,1756252234657,-13311.31967933,0.000249,2]
[381525687,1756252234667,-309.0,0.00024932,7]
[381525688,1756252234676,-150.0,0.00024986,2]
[381525689,1756252234686,-200.0,0.00024986,2]
[381525690,1756252234695,-309.0,0.00025,7]
[381525691,1756252234705,-383.07,0.00025067,2]
[381525692,1756252234714,-150.0,0.00025074,7]
[381525693,1756252234724,-500.0,0.00025074,7]
[381525694,1756252234734,-150.0,0.00025074,7]
[381525695,1756252234744,-150.0,0.00025074,7]
[381525696,1756252234754,-500.0,0.00025074,7]
[381525697,1756252234763,-150.0,0.00025074,7]
[381525698,1756252234773,-150.0,0.00025074,7]
[381525699,1756252234787,-500.0,0.00025074,7]
[381525700,1756252234796,-150.0,0.00025074,7]
[381525701,1756252234805,-150.0,0.00025074,7]
[381525702,1756252234814,-150.0,0.00025074,7]
[381525703,1756252234823,-5646.81572227,0.00025157,2]
[381525704,1756252234833,-150.0,0.0002526,2]
[381525705,1756252234843,-12286.55922599,0.00025306,2]
[381525706,1756252234854,-334.5472959,0.00025307,2]
[381525707,1756252234864,-150.0,0.00025348,7]
[381525708,1756252234874,-500.0,0.00025348,7]
[381525709,1756252234884,-200.0,0.00025348,7]
[381525710,1756252234893,-150.0,0.00025348,7]
[381525711,1756252234903,-200.0,0.00025348,7]
[381525712,1756252234912,-200.0,0.00025348,7]
[381525713,1756252234922,-500.0,0.00025348,7]
[381525714,1756252234931,-150.0,0.00025348,7]
[381525715,1756252234941,-200.0,0.00025348,7]
[381525716,1756252234950,-844.63891918,0.0002535,7]
[381525717,1756252234960,-427.3677418,0.00025378,7]
[381525718,1756252234970,-212.18043798,0.000254,7]
[381525719,1756252234979,-160.0,0.000254,7]
[381525720,1756252234989,-1184.83,0.00025478,2]
[381525721,1756252234998,-180.87,0.00025478,2]